[Event "Titled Tuesday Blitz April 4 Early 2023"]
[White "Van Foreest, Jorden"]
[Black "polandchessplayer"]
[WhiteFideId "1039784"]
[WhiteElo "2633"]
[BlackElo "2701"]
[Result "1-0"]
[Round "03"]
[TimeControl "180+2"]
[Date "2023.04.04"]
[WhiteClock "0:01:24"]
[BlackClock "0:00:05"]

1. d4 {[%clk 0:02:46]}  Nf6 {[%clk 0:02:59]} 2. Nc3 {[%clk 0:02:46]}  d6 {[%clk 0:02:57]} 3. e4 {[%clk 0:02:45]}  e5 {[%clk 0:02:57]} 4. dxe5 {[%clk 0:02:45]}  dxe5 {[%clk 0:02:58]} 5. Qxd8+ {[%clk 0:02:44]}  Kxd8 {[%clk 0:02:59]} 6. f3 {[%clk 0:02:44]}  c6 {[%clk 0:02:56]} 7. a4 {[%clk 0:02:43]}  Be6 {[%clk 0:02:53]} 8. h4 {[%clk 0:02:40]}  Nfd7 {[%clk 0:02:48]} 9. Nh3 {[%clk 0:02:41]}  f6 {[%clk 0:02:48]} 10. Nf2 {[%clk 0:02:41]}  Kc7 {[%clk 0:02:47]} 11. Ncd1 {[%clk 0:02:42]}  a5 {[%clk 0:02:45]} 12. Ne3 {[%clk 0:02:42]}  Nb6 {[%clk 0:02:45]} 13. Bd2 {[%clk 0:02:42]}  N8d7 {[%clk 0:02:45]} 14. b3 {[%clk 0:02:42]}  Bc5 {[%clk 0:02:38]} 15. h5 {[%clk 0:02:41]}  Rhd8 {[%clk 0:02:37]} 16. Rb1 {[%clk 0:02:38]}  Nf8 {[%clk 0:02:12]} 17. Nf5 {[%clk 0:02:28]}  Bxf5 {[%clk 0:02:06]} 18. Nd3 {[%clk 0:02:28]}  Rxd3 {[%clk 0:02:04]} 19. Bxd3 {[%clk 0:02:27]}  Be6 {[%clk 0:02:00]} 20. c3 {[%clk 0:02:28]}  Be7 {[%clk 0:01:56]} 21. Ke2 {[%clk 0:02:25]}  Nfd7 {[%clk 0:01:57]} 22. Be3 {[%clk 0:02:25]}  Bc5 {[%clk 0:01:56]} 23. Bd2 {[%clk 0:02:25]}  Bf7 {[%clk 0:01:52]} 24. Bc2 {[%clk 0:02:25]}  Nf8 {[%clk 0:01:49]} 25. g3 {[%clk 0:02:24]}  Nfd7 {[%clk 0:01:48]} 26. f4 {[%clk 0:02:24]}  Re8 {[%clk 0:01:47]} 27. Kf3 {[%clk 0:02:23]}  Bd6 {[%clk 0:01:45]} 28. Be3 {[%clk 0:02:21]}  h6 {[%clk 0:01:38]} 29. Bf2 {[%clk 0:02:12]}  exf4 {[%clk 0:01:35]} 30. gxf4 {[%clk 0:02:11]}  f5 {[%clk 0:01:36]} 31. e5 {[%clk 0:02:11]}  Bd5+ {[%clk 0:01:33]} 32. Kg3 {[%clk 0:02:10]}  Nxe5 {[%clk 0:01:32]} 33. Rhe1 {[%clk 0:02:05]}  Nbd7 {[%clk 0:01:01]} 34. c4 {[%clk 0:01:53]}  Bf7 {[%clk 0:00:38]} 35. c5 {[%clk 0:01:52]}  Bf8 {[%clk 0:00:34]} 36. fxe5 {[%clk 0:01:51]}  Nxc5 {[%clk 0:00:35]} 37. Bxf5 {[%clk 0:01:50]}  Bxh5 {[%clk 0:00:34]} 38. Kg2 {[%clk 0:01:35]}  Bf7 {[%clk 0:00:33]} 39. Bg3 {[%clk 0:01:36]}  Bd5+ {[%clk 0:00:33]} 40. Kh2 {[%clk 0:01:35]}  Ne6 {[%clk 0:00:33]} 41. Rf1 {[%clk 0:01:35]}  Be7 {[%clk 0:00:30]} 42. Bh3 {[%clk 0:01:31]}  h5 {[%clk 0:00:27]} 43. Rfd1 {[%clk 0:01:30]}  g5 {[%clk 0:00:27]} 44. Rxd5 {[%clk 0:01:30]}  g4 {[%clk 0:00:24]} 45. Rd6 {[%clk 0:01:26]}  Bxd6 {[%clk 0:00:21]} 46. exd6+ {[%clk 0:01:27]}  Kd7 {[%clk 0:00:22]} 47. Bg2 {[%clk 0:01:28]}  Ng5 {[%clk 0:00:23]} 48. b4 {[%clk 0:01:26]}  Ne4 {[%clk 0:00:10]} 49. Bxe4 {[%clk 0:01:23]}  Rxe4 {[%clk 0:00:09]} 50. bxa5 {[%clk 0:01:24]}  h4 {[%clk 0:00:06]} 51. Rxb7+ {[%clk 0:01:23]}  Kd8 {[%clk 0:00:04]} 52. Bxh4+ {[%clk 0:01:23]}  Kc8 {[%clk 0:00:04]} 53. d7+ {[%clk 0:01:23]}  Kxb7 {[%clk 0:00:04]} 54. d8=Q {[%clk 0:01:24]}  Ka6 {[%clk 0:00:05]} 55. Qb6# {[%clk 0:01:24]} 1-0


[Site "https://www.chess.com"]

[Event "Titled Tuesday Blitz April 4 Early 2023"]
[White "Bashirli, Nail"]
[Black "Movahed, Sina"]
[WhiteFideId "13406809"]
[BlackFideId "42520835"]
[WhiteElo "2322"]
[BlackElo "2225"]
[Result "0-1"]
[Round "03"]
[TimeControl "180+2"]
[Date "2023.04.04"]
[WhiteClock "0:00:04"]
[BlackClock "0:00:18"]

1. e4 {[%clk 0:03:00]}  c5 {[%clk 0:02:59]} 2. Nf3 {[%clk 0:02:59]}  d6 {[%clk 0:03:00]} 3. Nc3 {[%clk 0:02:58]}  Nf6 {[%clk 0:02:59]} 4. d4 {[%clk 0:02:58]}  cxd4 {[%clk 0:03:00]} 5. Nxd4 {[%clk 0:02:58]}  a6 {[%clk 0:03:00]} 6. Bc4 {[%clk 0:02:58]}  e6 {[%clk 0:02:59]} 7. Bb3 {[%clk 0:02:58]}  Be7 {[%clk 0:02:59]} 8. Bg5 {[%clk 0:02:56]}  O-O {[%clk 0:02:58]} 9. Qe2 {[%clk 0:02:55]}  b5 {[%clk 0:02:57]} 10. O-O-O {[%clk 0:02:54]}  Qc7 {[%clk 0:02:57]} 11. f4 {[%clk 0:02:53]}  b4 {[%clk 0:02:55]} 12. Na4 {[%clk 0:02:52]}  Nbd7 {[%clk 0:02:51]} 13. Rhe1 {[%clk 0:02:45]}  Nc5 {[%clk 0:02:24]} 14. Nxc5 {[%clk 0:02:32]}  dxc5 {[%clk 0:02:18]} 15. Nf3 {[%clk 0:02:31]}  Bb7 {[%clk 0:02:12]} 16. e5 {[%clk 0:01:44]}  Nd5 {[%clk 0:02:10]} 17. f5 {[%clk 0:01:41]}  Rfd8 {[%clk 0:01:52]} 18. fxe6 {[%clk 0:01:23]}  fxe6 {[%clk 0:01:52]} 19. Kb1 {[%clk 0:01:06]}  a5 {[%clk 0:01:48]} 20. Bc4 {[%clk 0:01:00]}  a4 {[%clk 0:01:47]} 21. Bxe7 {[%clk 0:00:58]}  Qxe7 {[%clk 0:01:46]} 22. Bxd5 {[%clk 0:00:52]}  Bxd5 {[%clk 0:01:43]} 23. Qe3 {[%clk 0:00:51]}  c4 {[%clk 0:01:36]} 24. Rd4 {[%clk 0:00:46]}  Rdc8 {[%clk 0:01:30]} 25. Ng5 {[%clk 0:00:38]}  c3 {[%clk 0:01:22]} 26. Ne4 {[%clk 0:00:29]}  cxb2 {[%clk 0:01:19]} 27. Nd6 {[%clk 0:00:18]}  Rc6 {[%clk 0:01:17]} 28. Rxb4 {[%clk 0:00:17]}  a3 {[%clk 0:01:09]} 29. Rf1 {[%clk 0:00:17]}  Bxg2 {[%clk 0:01:01]} 30. Qxa3 {[%clk 0:00:13]}  Rxd6 {[%clk 0:00:19]} 31. exd6 {[%clk 0:00:12]}  Qxd6 {[%clk 0:00:20]} 32. Re4 {[%clk 0:00:04]}  Qxa3 {[%clk 0:00:18]} 0-1


[Site "https://www.chess.com"]

[Event "Titled Tuesday Blitz April 4 Early 2023"]
[White "Lenderman, Aleksandr"]
[Black "Perez Gormaz, Matias"]
[WhiteFideId "2021285"]
[BlackFideId "3406342"]
[WhiteElo "2607"]
[BlackElo "2362"]
[Result "1-0"]
[Round "03"]
[TimeControl "180+2"]
[Date "2023.04.04"]
[WhiteClock "0:01:34"]
[BlackClock "0:00:06"]

1. Nf3 {[%clk 0:03:00]}  d5 {[%clk 0:02:56]} 2. e3 {[%clk 0:03:00]}  Nf6 {[%clk 0:02:55]} 3. c4 {[%clk 0:02:59]}  e6 {[%clk 0:02:55]} 4. Nc3 {[%clk 0:02:58]}  a6 {[%clk 0:02:51]} 5. b3 {[%clk 0:02:57]}  b6 {[%clk 0:02:51]} 6. Bb2 {[%clk 0:02:57]}  Bb7 {[%clk 0:02:52]} 7. g3 {[%clk 0:02:54]}  Nbd7 {[%clk 0:02:49]} 8. cxd5 {[%clk 0:02:45]}  Nxd5 {[%clk 0:02:42]} 9. Nxd5 {[%clk 0:02:45]}  Bxd5 {[%clk 0:02:43]} 10. Bg2 {[%clk 0:02:45]}  Nf6 {[%clk 0:02:43]} 11. O-O {[%clk 0:02:44]}  Be7 {[%clk 0:02:43]} 12. Qc2 {[%clk 0:02:40]}  Be4 {[%clk 0:02:38]} 13. Qc1 {[%clk 0:02:33]}  Qd5 {[%clk 0:02:24]} 14. Ne1 {[%clk 0:02:24]}  Bxg2 {[%clk 0:02:24]} 15. Nxg2 {[%clk 0:02:25]}  c5 {[%clk 0:02:19]} 16. Nf4 {[%clk 0:02:18]}  Qd7 {[%clk 0:02:18]} 17. d4 {[%clk 0:02:18]}  Rc8 {[%clk 0:02:14]} 18. Qb1 {[%clk 0:02:06]}  h5 {[%clk 0:02:04]} 19. Rd1 {[%clk 0:02:03]}  Qb7 {[%clk 0:02:00]} 20. d5 {[%clk 0:02:02]}  exd5 {[%clk 0:01:47]} 21. Qf5 {[%clk 0:01:57]}  h4 {[%clk 0:01:19]} 22. Nxd5 {[%clk 0:01:51]}  hxg3 {[%clk 0:01:13]} 23. fxg3 {[%clk 0:01:47]}  Rc6 {[%clk 0:00:56]} 24. Bxf6 {[%clk 0:01:37]}  Bxf6 {[%clk 0:00:50]} 25. Qe4+ {[%clk 0:01:37]}  Kf8 {[%clk 0:00:06]} 26. Nxf6 {[%clk 0:01:34]} 1-0


[Site "https://www.chess.com"]

[Event "Titled Tuesday Blitz April 4 Early 2023"]
[White "Skvortsov, Andrei"]
[Black "Gurel, Ediz"]
[WhiteFideId "24108600"]
[BlackFideId "44507356"]
[WhiteElo "2259"]
[BlackElo "2352"]
[Result "1-0"]
[Round "03"]
[TimeControl "180+2"]
[Date "2023.04.04"]
[WhiteClock "0:00:56"]
[BlackClock "0:00:33"]

1. e4 {[%clk 0:03:00]}  c5 {[%clk 0:02:59]} 2. d4 {[%clk 0:03:01]}  cxd4 {[%clk 0:02:58]} 3. Qxd4 {[%clk 0:03:02]}  Nc6 {[%clk 0:02:58]} 4. Qd3 {[%clk 0:03:02]}  Nf6 {[%clk 0:02:57]} 5. Nc3 {[%clk 0:03:02]}  e6 {[%clk 0:02:57]} 6. Bf4 {[%clk 0:03:02]}  Bb4 {[%clk 0:02:53]} 7. Ne2 {[%clk 0:03:00]}  O-O {[%clk 0:02:50]} 8. O-O-O {[%clk 0:03:00]}  d5 {[%clk 0:02:50]} 9. exd5 {[%clk 0:03:01]}  exd5 {[%clk 0:02:50]} 10. Nxd5 {[%clk 0:03:01]}  Nxd5 {[%clk 0:02:51]} 11. Qxd5 {[%clk 0:03:02]}  Qe7 {[%clk 0:02:45]} 12. Bd6 {[%clk 0:02:43]}  Bxd6 {[%clk 0:02:41]} 13. Qxd6 {[%clk 0:02:44]}  Qg5+ {[%clk 0:02:28]} 14. Qf4 {[%clk 0:02:43]}  Qa5 {[%clk 0:02:27]} 15. Nc3 {[%clk 0:02:40]}  Be6 {[%clk 0:02:25]} 16. a3 {[%clk 0:02:33]}  Rfd8 {[%clk 0:02:20]} 17. Bc4 {[%clk 0:02:30]}  Bxc4 {[%clk 0:02:20]} 18. Qxc4 {[%clk 0:02:29]}  Qg5+ {[%clk 0:02:19]} 19. Kb1 {[%clk 0:02:27]}  Qxg2 {[%clk 0:02:19]} 20. Rdg1 {[%clk 0:02:15]}  Qxf2 {[%clk 0:02:03]} 21. Rf1 {[%clk 0:02:14]}  Qd4 {[%clk 0:01:31]} 22. Qxf7+ {[%clk 0:02:13]}  Kh8 {[%clk 0:01:32]} 23. Qxb7 {[%clk 0:01:38]}  Na5 {[%clk 0:01:16]} 24. Qe4 {[%clk 0:01:29]}  Qb6 {[%clk 0:01:06]} 25. Rd1 {[%clk 0:01:16]}  Re8 {[%clk 0:01:02]} 26. Qd4 {[%clk 0:01:14]}  Qh6 {[%clk 0:00:43]} 27. Qd5 {[%clk 0:01:01]}  Nc6 {[%clk 0:00:41]} 28. Rhe1 {[%clk 0:00:59]}  Red8 {[%clk 0:00:33]} 29. Qxd8+ {[%clk 0:00:56]} 1-0


[Site "https://www.chess.com"]

[Event "Titled Tuesday Blitz April 4 Early 2023"]
[White "Rakhmatullaev, Almas"]
[Black "Ezat, Mohamed"]
[WhiteFideId "14205793"]
[BlackFideId "10600906"]
[WhiteElo "2221"]
[BlackElo "2386"]
[Result "1-0"]
[Round "03"]
[TimeControl "180+2"]
[Date "2023.04.04"]
[WhiteClock "0:00:13"]
[BlackClock "0:00:14"]

1. e4 {[%clk 0:03:00]}  c6 {[%clk 0:02:56]} 2. Nf3 {[%clk 0:03:00]}  d5 {[%clk 0:02:56]} 3. d3 {[%clk 0:03:01]}  dxe4 {[%clk 0:02:54]} 4. dxe4 {[%clk 0:03:02]}  Qxd1+ {[%clk 0:02:54]} 5. Kxd1 {[%clk 0:03:03]}  Bg4 {[%clk 0:02:53]} 6. Be2 {[%clk 0:03:01]}  Nd7 {[%clk 0:02:53]} 7. Nfd2 {[%clk 0:03:00]}  Bxe2+ {[%clk 0:02:52]} 8. Kxe2 {[%clk 0:03:01]}  e6 {[%clk 0:02:51]} 9. b3 {[%clk 0:02:54]}  O-O-O {[%clk 0:02:51]} 10. Bb2 {[%clk 0:02:54]}  Ngf6 {[%clk 0:02:50]} 11. f3 {[%clk 0:02:54]}  Be7 {[%clk 0:02:45]} 12. a4 {[%clk 0:02:54]}  Nh5 {[%clk 0:02:43]} 13. g3 {[%clk 0:02:54]}  f5 {[%clk 0:02:39]} 14. f4 {[%clk 0:02:47]}  Bf6 {[%clk 0:02:30]} 15. Bxf6 {[%clk 0:02:28]}  Nhxf6 {[%clk 0:02:25]} 16. e5 {[%clk 0:02:16]}  Nd5 {[%clk 0:02:21]} 17. Nc4 {[%clk 0:02:17]}  Rdf8 {[%clk 0:02:07]} 18. Nd6+ {[%clk 0:02:11]}  Kc7 {[%clk 0:02:07]} 19. c4 {[%clk 0:02:12]}  Nb4 {[%clk 0:02:06]} 20. Nd2 {[%clk 0:01:49]}  g5 {[%clk 0:02:03]} 21. Nf3 {[%clk 0:01:44]}  gxf4 {[%clk 0:02:00]} 22. gxf4 {[%clk 0:01:45]}  h6 {[%clk 0:01:58]} 23. Rhg1 {[%clk 0:01:37]}  Rhg8 {[%clk 0:01:58]} 24. Nd4 {[%clk 0:01:37]}  Nc5 {[%clk 0:01:57]} 25. Rg3 {[%clk 0:01:22]}  h5 {[%clk 0:01:42]} 26. Rag1 {[%clk 0:01:20]}  Rg4 {[%clk 0:01:42]} 27. Kf3 {[%clk 0:00:44]}  Nbd3 {[%clk 0:01:33]} 28. Ne2 {[%clk 0:00:45]}  Nxb3 {[%clk 0:01:18]} 29. h3 {[%clk 0:00:43]}  Rxg3+ {[%clk 0:01:09]} 30. Rxg3 {[%clk 0:00:44]}  Nbc5 {[%clk 0:00:54]} 31. Rg7+ {[%clk 0:00:41]}  Kb6 {[%clk 0:00:54]} 32. Nd4 {[%clk 0:00:40]}  a5 {[%clk 0:00:47]} 33. Rg6 {[%clk 0:00:26]}  h4 {[%clk 0:00:46]} 34. Nxe6 {[%clk 0:00:24]}  Nxe6 {[%clk 0:00:42]} 35. Rxe6 {[%clk 0:00:25]}  Nc5 {[%clk 0:00:40]} 36. Rf6 {[%clk 0:00:23]}  Rg8 {[%clk 0:00:35]} 37. Nxf5 {[%clk 0:00:22]}  Nxa4 {[%clk 0:00:33]} 38. e6 {[%clk 0:00:20]}  Nc5 {[%clk 0:00:30]} 39. e7 {[%clk 0:00:21]}  Nd7 {[%clk 0:00:23]} 40. Re6 {[%clk 0:00:21]}  Re8 {[%clk 0:00:11]} 41. Nd6 {[%clk 0:00:20]}  Nc5 {[%clk 0:00:09]} 42. Re3 {[%clk 0:00:15]}  Rxe7 {[%clk 0:00:09]} 43. Rxe7 {[%clk 0:00:15]}  a4 {[%clk 0:00:09]} 44. f5 {[%clk 0:00:12]}  a3 {[%clk 0:00:09]} 45. Re3 {[%clk 0:00:12]}  a2 {[%clk 0:00:07]} 46. Ra3 {[%clk 0:00:12]}  Kc7 {[%clk 0:00:08]} 47. Ne4 {[%clk 0:00:11]}  Nd7 {[%clk 0:00:08]} 48. Rxa2 {[%clk 0:00:11]}  Ne5+ {[%clk 0:00:09]} 49. Kf4 {[%clk 0:00:11]}  Nxc4 {[%clk 0:00:09]} 50. f6 {[%clk 0:00:12]}  Kd7 {[%clk 0:00:10]} 51. Rg2 {[%clk 0:00:09]}  Ke6 {[%clk 0:00:09]} 52. Rg7 {[%clk 0:00:09]}  Ne5 {[%clk 0:00:09]} 53. Re7+ {[%clk 0:00:09]}  Kd5 {[%clk 0:00:10]} 54. Rxe5+ {[%clk 0:00:10]}  Kd4 {[%clk 0:00:11]} 55. f7 {[%clk 0:00:11]}  c5 {[%clk 0:00:11]} 56. f8=Q {[%clk 0:00:12]}  c4 {[%clk 0:00:11]} 57. Qc5+ {[%clk 0:00:12]}  Kd3 {[%clk 0:00:12]} 58. Qe3+ {[%clk 0:00:12]}  Kc2 {[%clk 0:00:12]} 59. Qd2+ {[%clk 0:00:13]}  Kb1 {[%clk 0:00:13]} 60. Nc3+ {[%clk 0:00:12]}  Ka1 {[%clk 0:00:14]} 61. Re1# {[%clk 0:00:13]} 1-0


[Site "https://www.chess.com"]

[Event "Titled Tuesday Blitz April 4 Early 2023"]
[White "Thomforde-Toates, Noah"]
[Black "Ashraf, Artin"]
[WhiteFideId "30951992"]
[BlackFideId "22514805"]
[WhiteElo "2667"]
[BlackElo "2188"]
[Result "0-1"]
[Round "03"]
[TimeControl "180+2"]
[Date "2023.04.04"]
[WhiteClock "0:00:14"]
[BlackClock "0:00:08"]

1. e4 {[%clk 0:03:00]}  c5 {[%clk 0:02:59]} 2. Nf3 {[%clk 0:02:59]}  d6 {[%clk 0:02:59]} 3. Nc3 {[%clk 0:02:58]}  a6 {[%clk 0:02:58]} 4. a4 {[%clk 0:02:54]}  Nc6 {[%clk 0:02:55]} 5. d4 {[%clk 0:02:48]}  cxd4 {[%clk 0:02:54]} 6. Nxd4 {[%clk 0:02:49]}  g6 {[%clk 0:02:51]} 7. Be3 {[%clk 0:02:48]}  Nf6 {[%clk 0:02:50]} 8. f3 {[%clk 0:02:42]}  Bg7 {[%clk 0:02:48]} 9. Qd2 {[%clk 0:02:42]}  Bd7 {[%clk 0:02:45]} 10. Bc4 {[%clk 0:02:41]}  Rc8 {[%clk 0:02:44]} 11. Ba2 {[%clk 0:02:41]}  O-O {[%clk 0:02:43]} 12. O-O {[%clk 0:02:40]}  Ne5 {[%clk 0:02:22]} 13. Qe2 {[%clk 0:02:38]}  Qa5 {[%clk 0:02:10]} 14. Nd5 {[%clk 0:02:31]}  Nxd5 {[%clk 0:01:59]} 15. Bxd5 {[%clk 0:02:31]}  e6 {[%clk 0:01:58]} 16. Bxb7 {[%clk 0:02:24]}  Rc4 {[%clk 0:01:39]} 17. f4 {[%clk 0:02:01]}  Ng4 {[%clk 0:01:16]} 18. Qxg4 {[%clk 0:01:06]}  Bxd4 {[%clk 0:01:11]} 19. Bxd4 {[%clk 0:01:06]}  Rxd4 {[%clk 0:01:12]} 20. Qe2 {[%clk 0:01:05]}  Rb8 {[%clk 0:00:34]} 21. Bxa6 {[%clk 0:00:58]}  Rd2 {[%clk 0:00:29]} 22. Qe3 {[%clk 0:00:38]}  Rxc2 {[%clk 0:00:23]} 23. Bd3 {[%clk 0:00:36]}  Rcxb2 {[%clk 0:00:23]} 24. Rfb1 {[%clk 0:00:29]}  Bxa4 {[%clk 0:00:17]} 25. Rxb2 {[%clk 0:00:29]}  Rxb2 {[%clk 0:00:18]} 26. Qd4 {[%clk 0:00:28]}  Qd2 {[%clk 0:00:17]} 27. Kf1 {[%clk 0:00:18]}  Qxg2+ {[%clk 0:00:14]} 28. Ke1 {[%clk 0:00:19]}  Qd2+ {[%clk 0:00:13]} 29. Kf1 {[%clk 0:00:19]}  Qxh2 {[%clk 0:00:06]} 30. Rxa4 {[%clk 0:00:15]}  Qh1+ {[%clk 0:00:07]} 31. Qg1 {[%clk 0:00:14]}  Qf3+ {[%clk 0:00:07]} 32. Ke1 {[%clk 0:00:14]}  Qxd3 {[%clk 0:00:08]} 33. Ra8+ {[%clk 0:00:14]}  Kg7 {[%clk 0:00:08]} 0-1


[Site "https://www.chess.com"]

[Event "Titled Tuesday Blitz April 4 Early 2023"]
[White "Piesik, Piotr"]
[Black "Zhigalko, Sergei"]
[WhiteFideId "1136194"]
[BlackFideId "13502956"]
[WhiteElo "2299"]
[BlackElo "2626"]
[Result "1/2-1/2"]
[Round "03"]
[TimeControl "180+2"]
[Date "2023.04.04"]
[WhiteClock "0:00:12"]
[BlackClock "0:00:05"]

1. Nf3 {[%clk 0:01:58]}  d5 {[%clk 0:02:59]} 2. g3 {[%clk 0:01:58]}  c6 {[%clk 0:02:59]} 3. Bg2 {[%clk 0:01:59]}  Bg4 {[%clk 0:02:59]} 4. O-O {[%clk 0:02:00]}  Nd7 {[%clk 0:03:00]} 5. d3 {[%clk 0:02:00]}  e6 {[%clk 0:03:00]} 6. Nbd2 {[%clk 0:02:01]}  Bd6 {[%clk 0:03:00]} 7. e4 {[%clk 0:02:02]}  Ne7 {[%clk 0:03:01]} 8. h3 {[%clk 0:02:03]}  Bh5 {[%clk 0:03:01]} 9. Qe1 {[%clk 0:02:02]}  O-O {[%clk 0:03:01]} 10. Nh4 {[%clk 0:02:02]}  Re8 {[%clk 0:02:56]} 11. f4 {[%clk 0:02:02]}  f6 {[%clk 0:02:56]} 12. Kh2 {[%clk 0:01:58]}  Qc7 {[%clk 0:02:49]} 13. Nb3 {[%clk 0:01:55]}  a5 {[%clk 0:02:47]} 14. a4 {[%clk 0:01:55]}  Bf7 {[%clk 0:02:40]} 15. Bd2 {[%clk 0:01:54]}  b6 {[%clk 0:02:33]} 16. Nd4 {[%clk 0:01:54]}  Ng6 {[%clk 0:02:19]} 17. Nxg6 {[%clk 0:01:50]}  hxg6 {[%clk 0:02:18]} 18. exd5 {[%clk 0:01:45]}  exd5 {[%clk 0:01:55]} 19. Qf2 {[%clk 0:01:45]}  Nc5 {[%clk 0:01:53]} 20. b3 {[%clk 0:01:37]}  Ne6 {[%clk 0:01:46]} 21. Bc3 {[%clk 0:01:30]}  Nxd4 {[%clk 0:01:37]} 22. Bxd4 {[%clk 0:01:29]}  c5 {[%clk 0:01:35]} 23. Bc3 {[%clk 0:01:29]}  Re7 {[%clk 0:01:18]} 24. Rfe1 {[%clk 0:01:27]}  Rae8 {[%clk 0:01:19]} 25. Rxe7 {[%clk 0:01:27]}  Rxe7 {[%clk 0:01:17]} 26. Re1 {[%clk 0:01:27]}  Kf8 {[%clk 0:01:11]} 27. Bf3 {[%clk 0:01:21]}  Qd7 {[%clk 0:00:55]} 28. Rxe7 {[%clk 0:01:15]}  Qxe7 {[%clk 0:00:55]} 29. Qg2 {[%clk 0:01:12]}  Qe6 {[%clk 0:00:45]} 30. Bd2 {[%clk 0:01:00]}  Bc7 {[%clk 0:00:41]} 31. Qe2 {[%clk 0:00:56]}  Qd6 {[%clk 0:00:41]} 32. Kg2 {[%clk 0:00:54]}  Be8 {[%clk 0:00:35]} 33. h4 {[%clk 0:00:51]}  Bd7 {[%clk 0:00:34]} 34. Bg4 {[%clk 0:00:46]}  Bc6 {[%clk 0:00:22]} 35. Bf3 {[%clk 0:00:46]}  Be8 {[%clk 0:00:19]} 36. Bg4 {[%clk 0:00:41]}  Bf7 {[%clk 0:00:19]} 37. Bf3 {[%clk 0:00:41]}  Be6 {[%clk 0:00:18]} 38. Bg4 {[%clk 0:00:39]}  Bf7 {[%clk 0:00:17]} 39. Bf3 {[%clk 0:00:37]}  Qe6 {[%clk 0:00:14]} 40. Qxe6 {[%clk 0:00:36]}  Bxe6 {[%clk 0:00:15]} 41. c4 {[%clk 0:00:22]}  Bf5 {[%clk 0:00:11]} 42. Be2 {[%clk 0:00:15]}  Ke7 {[%clk 0:00:08]} 43. g4 {[%clk 0:00:13]}  Bd7 {[%clk 0:00:08]} 44. Bf3 {[%clk 0:00:12]}  dxc4 {[%clk 0:00:05]} 45. dxc4 {[%clk 0:00:13]}  f5 {[%clk 0:00:02]} 46. g5 {[%clk 0:00:13]}  Be6 {[%clk 0:00:02]} 47. Kf2 {[%clk 0:00:13]}  Bf7 {[%clk 0:00:03]} 48. Ke3 {[%clk 0:00:12]}  Be8 {[%clk 0:00:03]} 49. Bc3 {[%clk 0:00:12]}  Kf8 {[%clk 0:00:02]} 50. Bd5 {[%clk 0:00:13]}  Bf7 {[%clk 0:00:02]} 51. Bxf7 {[%clk 0:00:11]}  Kxf7 {[%clk 0:00:03]} 52. Bb2 {[%clk 0:00:12]}  Bd6 {[%clk 0:00:03]} 53. Bc3 {[%clk 0:00:11]}  Bc7 {[%clk 0:00:04]} 54. Bb2 {[%clk 0:00:12]}  Bd6 {[%clk 0:00:04]} 55. Bc3 {[%clk 0:00:12]}  Bc7 {[%clk 0:00:05]} 1/2-1/2


[Site "https://www.chess.com"]

[Event "Titled Tuesday Blitz April 4 Early 2023"]
[White "Sokolovsky, Yahli"]
[Black "Zakhartsov, Vladimir"]
[WhiteFideId "2820242"]
[BlackFideId "4145097"]
[WhiteElo "2316"]
[BlackElo "2497"]
[Result "0-1"]
[Round "03"]
[TimeControl "180+2"]
[Date "2023.04.04"]
[WhiteClock "0:00:03"]
[BlackClock "0:00:07"]

1. b3 {[%clk 0:03:00]}  d5 {[%clk 0:02:56]} 2. Bb2 {[%clk 0:03:01]}  c5 {[%clk 0:02:56]} 3. e3 {[%clk 0:03:01]}  a6 {[%clk 0:02:56]} 4. Nf3 {[%clk 0:03:01]}  Nc6 {[%clk 0:02:56]} 5. d4 {[%clk 0:03:02]}  Bg4 {[%clk 0:02:55]} 6. a3 {[%clk 0:03:01]}  cxd4 {[%clk 0:02:55]} 7. exd4 {[%clk 0:03:01]}  Nf6 {[%clk 0:02:55]} 8. Be2 {[%clk 0:03:01]}  e6 {[%clk 0:02:56]} 9. O-O {[%clk 0:03:02]}  Bd6 {[%clk 0:02:56]} 10. h3 {[%clk 0:02:58]}  Bh5 {[%clk 0:02:56]} 11. Ne5 {[%clk 0:02:59]}  Bxe2 {[%clk 0:02:54]} 12. Qxe2 {[%clk 0:03:00]}  Rc8 {[%clk 0:02:54]} 13. f4 {[%clk 0:02:55]}  O-O {[%clk 0:02:52]} 14. Nd2 {[%clk 0:02:54]}  b5 {[%clk 0:02:50]} 15. Qd3 {[%clk 0:02:41]}  Qb6 {[%clk 0:02:46]} 16. Kh2 {[%clk 0:02:39]}  Rc7 {[%clk 0:02:45]} 17. Rae1 {[%clk 0:02:32]}  Rfc8 {[%clk 0:02:40]} 18. Re2 {[%clk 0:02:22]}  Ne7 {[%clk 0:02:38]} 19. c3 {[%clk 0:02:04]}  a5 {[%clk 0:02:23]} 20. g4 {[%clk 0:01:54]}  g6 {[%clk 0:02:13]} 21. Qe3 {[%clk 0:01:53]}  Qb7 {[%clk 0:02:04]} 22. Kh1 {[%clk 0:01:24]}  a4 {[%clk 0:01:54]} 23. f5 {[%clk 0:01:18]}  exf5 {[%clk 0:01:51]} 24. gxf5 {[%clk 0:01:16]}  Ne4 {[%clk 0:01:43]} 25. Nxe4 {[%clk 0:00:40]}  dxe4 {[%clk 0:01:42]} 26. Nxf7 {[%clk 0:00:38]}  Nxf5 {[%clk 0:01:31]} 27. Rxf5 {[%clk 0:00:35]}  Rxf7 {[%clk 0:01:30]} 28. Rxf7 {[%clk 0:00:32]}  Qxf7 {[%clk 0:01:30]} 29. Rf2 {[%clk 0:00:27]}  Qd5 {[%clk 0:01:14]} 30. bxa4 {[%clk 0:00:23]}  bxa4 {[%clk 0:01:13]} 31. Kg1 {[%clk 0:00:23]}  Be7 {[%clk 0:01:01]} 32. Re2 {[%clk 0:00:21]}  Rb8 {[%clk 0:00:41]} 33. Qxe4 {[%clk 0:00:21]}  Qg5+ {[%clk 0:00:41]} 34. Rg2 {[%clk 0:00:12]}  Qf6 {[%clk 0:00:37]} 35. Rf2 {[%clk 0:00:12]}  Qg5+ {[%clk 0:00:33]} 36. Rg2 {[%clk 0:00:12]}  Qf6 {[%clk 0:00:33]} 37. Qd5+ {[%clk 0:00:13]}  Kg7 {[%clk 0:00:29]} 38. Rf2 {[%clk 0:00:13]}  Qg5+ {[%clk 0:00:15]} 39. Qxg5 {[%clk 0:00:14]}  Bxg5 {[%clk 0:00:16]} 40. Re2 {[%clk 0:00:14]}  Kf7 {[%clk 0:00:14]} 41. c4 {[%clk 0:00:12]}  Bf6 {[%clk 0:00:13]} 42. Kg2 {[%clk 0:00:05]}  Rb3 {[%clk 0:00:10]} 43. Rc2 {[%clk 0:00:02]}  Ke8 {[%clk 0:00:08]} 44. c5 {[%clk 0:00:02]}  Kd7 {[%clk 0:00:08]} 45. c6+ {[%clk 0:00:02]}  Kc8 {[%clk 0:00:08]} 46. Bc1 {[%clk 0:00:02]}  Bxd4 {[%clk 0:00:08]} 47. Bf4 {[%clk 0:00:02]}  Rc3 {[%clk 0:00:06]} 48. Rxc3 {[%clk 0:00:02]}  Bxc3 {[%clk 0:00:06]} 49. Bc1 {[%clk 0:00:02]}  Kc7 {[%clk 0:00:06]} 50. Kf3 {[%clk 0:00:03]}  Kxc6 {[%clk 0:00:07]} 51. Ke4 {[%clk 0:00:04]}  Kc5 {[%clk 0:00:06]} 52. Kd3 {[%clk 0:00:04]}  Be5 {[%clk 0:00:07]} 53. Be3+ {[%clk 0:00:04]}  Kd5 {[%clk 0:00:07]} 54. Bc1 {[%clk 0:00:05]}  Bd6 {[%clk 0:00:07]} 55. Bb2 {[%clk 0:00:05]}  g5 {[%clk 0:00:06]} 56. Bc1 {[%clk 0:00:04]}  Be7 {[%clk 0:00:07]} 57. Kc3 {[%clk 0:00:01]}  h5 {[%clk 0:00:07]} 58. Be3 {[%clk 0:00:02]}  g4 {[%clk 0:00:07]} 59. hxg4 {[%clk 0:00:02]}  hxg4 {[%clk 0:00:08]} 60. Kb2 {[%clk 0:00:02]}  Kc4 {[%clk 0:00:08]} 61. Bf4 {[%clk 0:00:02]}  Kd3 {[%clk 0:00:07]} 62. Be5 {[%clk 0:00:02]}  Bc5 {[%clk 0:00:07]} 63. Bg3 {[%clk 0:00:01]}  Bd4+ {[%clk 0:00:07]} 64. Ka2 {[%clk 0:00:01]}  Ke2 {[%clk 0:00:06]} 65. Kb1 {[%clk 0:00:02]}  Kf3 {[%clk 0:00:06]} 66. Bd6 {[%clk 0:00:01]}  Be3 {[%clk 0:00:07]} 67. Bh2 {[%clk 0:00:02]}  Bf4 {[%clk 0:00:06]} 68. Bg1 {[%clk 0:00:03]}  g3 {[%clk 0:00:07]} 69. Kc2 {[%clk 0:00:03]}  Be3 {[%clk 0:00:07]} 0-1


[Site "https://www.chess.com"]